fUSD/lending_fUSD_20250616
["ID","MTS","AMOUNT","RATE_DAILY","PERIOD"]
[366156358,1750090251541,-957.96,0.00016324,2]
[366156359,1750090251551,-490.0,0.00016324,2]
[366156360,1750090251560,-1853.54,0.00016324,2]
[366156361,1750090251570,-678.09,0.00016324,2]
[366156362,1750090251579,-1410.42,0.00016324,2]
[366156363,1750090251588,-592.75,0.00016324,2]
[366156364,1750090251598,-568.29,0.00016324,2]
[366156365,1750090251607,-1137.49,0.00016324,2]
[366156366,1750090251617,-900.5,0.00016324,2]
[366156367,1750090251626,-505.05,0.00016324,2]
[366156368,1750090251636,-727.66,0.00016324,2]
[366156369,1750090251646,-971.4,0.00016324,2]
[366156370,1750090251655,-538.67,0.00016324,2]
[366156371,1750090251664,-1215.7,0.00016324,2]
[366156372,1750090251674,-490.0,0.00016324,2]
[366156373,1750090251684,-490.0,0.00016324,2]
[366156374,1750090251693,-561.98,0.00016324,2]
[366156375,1750090251703,-894.74,0.00016324,2]
[366156376,1750090251713,-547.53,0.00016324,2]
[366156377,1750090251723,-490.0,0.00016324,2]
[366156378,1750090251732,-1767.69,0.00016324,2]
[366156379,1750090251742,-711.75,0.00016324,2]
[366156380,1750090251751,-525.65,0.00016324,2]
[366156381,1750090251762,-798.41,0.00016324,2]
[366156382,1750090251771,-7744.98,0.00016324,2]
[366156383,1750090251783,-753.27,0.00016324,2]
[366156384,1750090251792,-527.63,0.00016324,2]
[366156385,1750090251801,-5635.22,0.00016324,2]
[366156386,1750090251810,-490.0,0.00016324,2]
[366156387,1750090251821,-590.67,0.00016324,2]
[366156388,1750090251831,-692.17,0.00016324,2]
[366156389,1750090251840,-12272.69,0.00016324,2]
[366156390,1750090251850,-548.0,0.00016324,2]
[366156391,1750090251860,-490.0,0.00016324,2]
[366156392,1750090251870,-1985.16,0.00016324,2]
[366156393,1750090251880,-490.0,0.00016324,2]
[366156394,1750090251889,-566.47,0.00016324,2]
[366156395,1750090251899,-1308.7,0.00016324,2]
[366156396,1750090251908,-5305.24,0.00016324,2]
[366156397,1750090251917,-826.89,0.00016324,2]
[366156398,1750090251927,-988.75,0.00016324,2]
[366156399,1750090251936,-892.82,0.00016324,2]
[366156400,1750090251945,-1691.7,0.00016324,2]
[366156401,1750090251955,-490.0,0.00016324,2]
[366156402,1750090251964,-2201.88,0.00016324,2]
[366156403,1750090251973,-490.0,0.00016324,2]
[366156404,1750090251982,-490.0,0.00016324,2]
[366156405,1750090251992,-490.0,0.00016324,2]
[366156406,1750090252002,-1135.54,0.00016324,2]
[366156407,1750090252012,-3742.7,0.00016324,2]
[366156408,1750090252022,-564.16,0.00016324,2]
[366156409,1750090252032,-490.0,0.00016324,2]
[366156410,1750090252041,-1046.12,0.00016325,2]
[366156411,1750090252051,-694.26,0.00016325,2]
[366156412,1750090252062,-1113.86,0.00016325,2]
[366156413,1750090252071,-490.0,0.00016325,2]
[366156414,1750090252080,-490.0,0.00016325,2]
[366156415,1750090252090,-490.0,0.00016325,2]
[366156416,1750090252100,-835.24,0.00016325,2]
[366156417,1750090252110,-764.43,0.00016325,2]
[366156418,1750090252119,-1112.86,0.00016325,2]
[366156419,1750090252129,-490.0,0.00016325,2]
[366156420,1750090252138,-1002.9,0.00016325,2]
[366156421,1750090252152,-490.0,0.00016325,2]
[366156422,1750090252161,-490.0,0.00016325,2]
[366156423,1750090252171,-913.22,0.00016325,2]
[366156424,1750090252181,-614.04,0.00016325,2]
[366156425,1750090252193,-793.49,0.00016325,2]
[366156426,1750090252203,-690.68,0.00016325,2]
[366156427,1750090252212,-490.0,0.00016325,2]
[366156428,1750090252222,-490.0,0.00016325,2]
[366156429,1750090252232,-154.0,0.00016325,2]
[366156430,1750090252242,-490.0,0.00016326,2]
[366156431,1750090252251,-490.0,0.00016326,2]
[366156432,1750090252261,-490.0,0.00016326,2]
[366156433,1750090252271,-490.0,0.00016326,2]
[366156434,1750090252281,-490.0,0.00016326,2]
[366156435,1750090252291,-735.38,0.00016326,2]
[366156436,1750090252301,-490.0,0.00016326,2]
[366156437,1750090252311,-490.0,0.00016326,2]
[366156438,1750090252321,-490.0,0.00016326,2]
[366156439,1750090252331,-189.27,0.00016326,2]
[366156440,1750090252341,-842.83,0.00016326,2]
[366156441,1750090252351,-490.0,0.00016326,2]
[366156442,1750090252362,-490.0,0.00016326,2]
[366156443,1750090252372,-490.0,0.00016326,2]
[366156444,1750090252381,-490.0,0.00016326,2]
[366156445,1750090252391,-493.98889462,0.00016326,2]
[366156446,1750090252401,-490.0,0.00016326,2]
[366156447,1750090252412,-490.0,0.00016326,2]
[366156448,1750090252421,-490.0,0.00016326,2]
[366156449,1750090252430,-592.05,0.00016326,2]
[366156450,1750090252439,-490.0,0.00016326,2]
[366156451,1750090252448,-490.0,0.00016326,2]
[366156452,1750090252458,-490.0,0.00016326,2]
[366156453,1750090252467,-490.0,0.00016326,2]
[366156454,1750090252476,-490.0,0.00016326,2]
[366156455,1750090252485,-490.0,0.00016326,2]
[366156456,1750090252495,-490.0,0.00016326,2]
[366156457,1750090252504,-490.0,0.00016326,2]
[366156458,1750090252513,-490.0,0.00016326,2]
[366156459,1750090252523,-490.0,0.00016326,2]
[366156460,1750090252532,-490.0,0.00016326,2]
[366156461,1750090252541,-490.0,0.00016326,2]
[366156462,1750090252550,-490.0,0.00016326,2]
[366156463,1750090252559,-490.0,0.00016326,2]
[366156464,1750090252569,-490.0,0.00016326,2]
[366156465,1750090252578,-490.0,0.00016326,2]
[366156466,1750090252587,-490.0,0.00016326,2]
[366156467,1750090252597,-490.0,0.00016326,2]
[366156468,1750090252606,-490.0,0.00016326,2]
[366156469,1750090252615,-490.0,0.00016326,2]
[366156470,1750090252625,-490.0,0.00016326,2]
[366156471,1750090252634,-490.0,0.00016326,2]
[366156472,1750090252643,-760.06,0.00016326,2]
[366156473,1750090252653,-490.0,0.00016326,2]
[366156474,1750090252662,-490.0,0.00016326,2]
[366156475,1750090252671,-490.0,0.00016326,2]
[366156476,1750090252681,-490.0,0.00016326,2]
[366156477,1750090252690,-545.13,0.00016326,2]
[366156478,1750090252699,-724.74,0.00016326,2]
[366156479,1750090252709,-689.33,0.00016326,2]
[366156480,1750090252718,-490.0,0.00016326,2]
[366156481,1750090252728,-490.0,0.00016326,2]
[366156482,1750090252737,-490.0,0.00016326,2]
[366156483,1750090252747,-490.0,0.00016326,2]
[366156484,1750090252757,-308.06,0.00016326,2]
[366156485,1750090252767,-490.0,0.00016326,2]
[366156486,1750090252777,-490.0,0.00016326,2]
[366156487,1750090252787,-490.0,0.00016326,2]
[366156488,1750090252796,-490.0,0.00016326,2]
[366156489,1750090252806,-234.2,0.00016326,2]
[366156490,1750090252815,-169.55944783,0.00016326,2]
[366156491,1750090252825,-490.0,0.00016326,2]
[366156492,1750090252834,-490.0,0.00016326,2]
[366156493,1750090252843,-490.0,0.00016326,2]
[366156494,1750090252853,-490.0,0.00016326,2]
[366156495,1750090252999,-490.0,0.00016327,2]
[366156496,1750090253022,-151.0,0.00016327,2]
[366156497,1750090253034,-151.0,0.00016327,2]
[366156498,1750090253044,-151.0,0.00016327,2]
[366156499,1750090253054,-224.723788,0.00016328,2]
[366156500,1750090253063,-170.196452,0.00016328,2]
[366156501,1750090253073,-151.0,0.00016328,2]
[366156502,1750090253083,-151.0,0.00016328,2]
[366156503,1750090253093,-500.0,0.00016339,2]
[366156504,1750090253103,-200.0,0.00016339,2]
[366156505,1750090253112,-200.0,0.0001634,2]
[366156506,1750090253122,-150.90057207,0.0001634,2]
[366156507,1750090253134,-172.28,0.00016352,2]
[366156508,1750090253145,-173.68636092,0.00016359,2]
[366156509,1750090253161,-1079.0,0.00016383,2]
[366156510,1750090253171,-11063.95586755,0.00016389,2]
[366156511,1750090253181,-163.70623402,0.00016389,2]
[366156512,1750090253191,-189.0,0.00016398,2]
[366156513,1750090253201,-767.72,0.00016399,2]
[366156514,1750090253211,-69094.2818878,0.000164,2]
[366156515,1750090253221,-151.0,0.000164,2]
[366156516,1750090253231,-151.178491,0.000164,2]
[366156517,1750090253242,-150.6,0.000164,2]
[366156518,1750090253252,-782.63,0.000164,2]
[366156519,1750090253262,-354.92,0.000164,2]
[366156520,1750090253272,-168.74685397,0.0001642,2]
[366156521,1750090253283,-833.8156298,0.00016428,2]
[366156522,1750090253294,-300.0,0.00016438,2]
[366156523,1750090253303,-300.0,0.00016438,2]
[366156524,1750090253314,-500.0,0.00016438,2]
[366156525,1750090253324,-433.40640208,0.00016438,2]
[366156526,1750090253335,-500.0,0.00016438,2]
[366156527,1750090253345,-500.0,0.00016438,2]
[366156528,1750090253355,-500.0,0.00016438,2]
[366156529,1750090253364,-162.38555296,0.00016438,2]
[366156530,1750090253374,-306.02857574,0.00016438,2]
[366156531,1750090253383,-490.0,0.00016438,2]
[366156532,1750090253392,-500.0,0.00016438,2]
[366156533,1750090253402,-150.0,0.00016438,2]
[366156534,1750090253413,-4836.49889556,0.00016443,2]
[366156535,1750090253423,-165.66081119,0.00016449,2]
[366156536,1750090253434,-300.0,0.00016454,2]
[366156537,1750090253444,-11063.95586755,0.00016471,2]
[366156538,1750090253455,-151.0,0.00016472,2]
[366156539,1750090253464,-151.0,0.00016472,2]
[366156540,1750090253474,-151.0,0.00016472,2]
[366156541,1750090253485,-151.0,0.00016472,2]
[366156542,1750090253495,-151.0,0.00016472,2]
[366156543,1750090253505,-151.0,0.00016472,2]
[366156544,1750090253516,-200.0,0.00016485,2]
[366156545,1750090253525,-200.0,0.00016485,2]
[366156546,1750090253535,-726.37,0.00016487,2]
[366156547,1750090253545,-490.0,0.00016487,2]
[366156548,1750090253555,-628.73,0.00016487,2]
[366156549,1750090253566,-1083.92,0.00016487,2]
[366156550,1750090253575,-1091.61,0.00016487,2]
[366156551,1750090253586,-1167.5,0.00016487,2]
[366156552,1750090253596,-490.0,0.00016487,2]
[366156553,1750090253606,-686.45,0.00016487,2]
[366156554,1750090253617,-667.24,0.00016487,2]
[366156555,1750090253628,-603.23,0.00016487,2]
[366156556,1750090253637,-636.78,0.00016487,2]
[366156557,1750090253653,-3942.71,0.00016487,2]
[366156558,1750090253663,-320.78395829,0.00016487,2]
[366156559,1750090253673,-549.93,0.00016487,2]
[366156560,1750090253682,-490.0,0.00016487,2]
[366156561,1750090253691,-913.62,0.00016487,2]
[366156562,1750090253701,-3879.56,0.00016487,2]
[366156563,1750090253710,-2088.96,0.00016487,2]
[366156564,1750090253719,-490.0,0.00016487,2]
[366156565,1750090253728,-669.25,0.00016487,2]
[366156566,1750090253739,-832.5,0.00016487,2]
[366156567,1750090253749,-739.89,0.00016487,2]
[366156568,1750090253759,-571.41,0.00016487,2]
[366156569,1750090253768,-645.3,0.00016487,2]
[366156570,1750090253778,-985.290263,0.00016487,2]
[366156571,1750090253788,-974.0,0.00016487,2]
[366156572,1750090253797,-490.0,0.00016487,2]
[366156573,1750090253807,-816.03,0.00016487,2]
[366156574,1750090253818,-548.6,0.00016487,2]
[366156575,1750090253827,-521.87,0.00016487,2]
[366156576,1750090253837,-961.3,0.00016488,2]
[366156577,1750090253847,-490.0,0.00016488,2]
[366156578,1750090253856,-581.46,0.00016488,2]
[366156579,1750090253867,-250.0,0.00016488,2]
[366156580,1750090253876,-490.0,0.00016488,2]
[366156581,1750090253886,-490.0,0.00016488,2]
[366156582,1750090253895,-639.42,0.00016488,2]
[366156583,1750090253904,-490.0,0.00016488,2]
[366156584,1750090253914,-670.62,0.00016488,2]
[366156585,1750090253923,-490.0,0.00016488,2]
[366156586,1750090253933,-490.0,0.00016488,2]
[366156587,1750090253942,-490.0,0.00016488,2]
[366156588,1750090253952,-490.0,0.00016488,2]
[366156589,1750090253962,-490.0,0.00016488,2]
[366156590,1750090253972,-490.0,0.00016488,2]
[366156591,1750090253982,-490.0,0.00016488,2]
[366156592,1750090253992,-607.7,0.00016488,2]
[366156593,1750090254002,-490.0,0.00016488,2]
[366156594,1750090254012,-610.62,0.00016488,2]
[366156595,1750090254023,-490.0,0.00016488,2]
[366156596,1750090254033,-490.0,0.00016488,2]
[366156597,1750090254043,-490.0,0.00016488,2]
[366156598,1750090254053,-490.0,0.00016488,2]
[366156599,1750090254064,-490.0,0.00016488,2]
[366156600,1750090254075,-490.0,0.00016488,2]
[366156601,1750090254085,-671.15,0.00016488,2]
[366156602,1750090254095,-490.0,0.00016488,2]
[366156603,1750090254105,-490.0,0.00016488,2]
[366156604,1750090254115,-490.0,0.00016488,2]
[366156605,1750090254128,-692.75,0.00016488,2]
[366156606,1750090254139,-490.0,0.00016488,2]
[366156607,1750090254151,-490.0,0.00016488,2]
[366156608,1750090254161,-490.0,0.00016488,2]
[366156609,1750090254171,-490.0,0.00016488,2]
[366156610,1750090254180,-584.86,0.00016488,2]
[366156611,1750090254190,-1061.36,0.00016488,2]
[366156612,1750090254200,-490.0,0.00016488,2]
[366156613,1750090254209,-490.0,0.00016488,2]
[366156614,1750090254219,-490.0,0.00016488,2]
[366156615,1750090254231,-490.0,0.00016488,2]
[366156616,1750090254241,-569.73,0.00016488,2]
[366156617,1750090254251,-490.0,0.00016488,2]
[366156618,1750090254260,-490.0,0.00016488,2]
[366156619,1750090254271,-490.0,0.00016488,2]
[366156620,1750090254281,-599.53,0.00016488,2]
[366156621,1750090254291,-490.0,0.00016488,2]
[366156622,1750090254300,-490.0,0.00016488,2]
[366156623,1750090254310,-821.41,0.00016488,2]
[366156624,1750090254320,-490.0,0.00016488,2]
[366156625,1750090254330,-490.0,0.00016488,2]
[366156626,1750090254339,-490.0,0.00016488,2]
[366156627,1750090254350,-490.0,0.00016488,2]
[366156628,1750090254360,-490.0,0.00016488,2]
[366156629,1750090254370,-490.0,0.00016488,2]
[366156630,1750090254380,-490.0,0.00016488,2]
[366156631,1750090254389,-954.02,0.00016488,2]
[366156632,1750090254399,-908.24,0.00016488,2]
[366156633,1750090254408,-151.0,0.00016488,2]
[366156634,1750090254418,-720.5,0.00016488,2]
[366156635,1750090254428,-552.71,0.00016488,2]
[366156636,1750090254438,-864.01,0.00016488,2]
[366156637,1750090254448,-490.0,0.00016488,2]
[366156638,1750090254458,-490.0,0.00016488,2]
[366156639,1750090254468,-687.61,0.00016488,2]
[366156640,1750090254478,-490.0,0.00016488,2]
[366156641,1750090254488,-619.52,0.00016488,2]
[366156642,1750090254498,-1166.2,0.00016488,2]
[366156643,1750090254508,-872.09,0.00016488,2]
[366156644,1750090254519,-151.0,0.00016488,2]
[366156645,1750090254529,-151.0,0.00016488,2]
[366156646,1750090254539,-151.0,0.00016488,2]
[366156647,1750090254548,-502.25,0.00016488,2]
[366156648,1750090254558,-343.94,0.00016488,2]
[366156649,1750090254568,-490.0,0.00016488,2]
[366156650,1750090254578,-490.0,0.00016488,2]
[366156651,1750090254587,-490.0,0.00016488,2]
[366156652,1750090254597,-901.57,0.00016488,2]
[366156653,1750090254607,-490.0,0.00016488,2]
[366156654,1750090254617,-151.0,0.00016488,2]
[366156655,1750090254627,-298.370624,0.00016488,2]
[366156656,1750090254637,-652.68,0.00016488,2]
[366156657,1750090254647,-490.0,0.00016488,2]
[366156658,1750090254657,-151.0,0.00016488,2]
[366156659,1750090254668,-151.0,0.00016488,2]
[366156660,1750090254678,-852.79,0.00016488,2]
[366156661,1750090254688,-151.0,0.00016488,2]
[366156662,1750090254698,-1111.49,0.00016488,2]
[366156663,1750090254708,-490.0,0.00016488,2]
[366156664,1750090254718,-773.05,0.00016488,2]
[366156665,1750090254729,-579.466708,0.00016488,2]
[366156666,1750090254739,-490.0,0.00016488,2]
[366156667,1750090254749,-490.0,0.00016488,2]
[366156668,1750090254759,-151.0,0.00016488,2]
[366156669,1750090254769,-151.0,0.00016488,2]
[366156670,1750090254781,-490.0,0.00016488,2]
[366156671,1750090254791,-151.0,0.00016488,2]
[366156672,1750090254802,-151.0,0.00016488,2]
[366156673,1750090254812,-1340.6,0.00016488,2]
[366156674,1750090254822,-490.0,0.00016488,2]
[366156675,1750090254832,-151.0,0.00016488,2]
[366156676,1750090254843,-1222.08,0.00016488,2]
[366156677,1750090254852,-1680.15,0.00016488,2]
[366156678,1750090254862,-151.0,0.00016488,2]
[366156679,1750090254872,-490.0,0.00016488,2]
[366156680,1750090254882,-2509.12,0.00016488,2]
[366156681,1750090254891,-815.14,0.00016488,2]
[366156682,1750090254901,-490.0,0.00016488,2]
[366156683,1750090254911,-490.0,0.00016488,2]
[366156684,1750090254920,-12579.44,0.00016488,2]
[366156685,1750090254930,-544.33,0.00016488,2]
[366156686,1750090254940,-846.85,0.00016488,2]
[366156687,1750090254950,-153.185897,0.00016488,2]
[366156688,1750090254961,-4715.76,0.00016488,2]
[366156689,1750090254971,-729.86,0.00016488,2]
[366156690,1750090254981,-151.0,0.00016488,2]
[366156691,1750090254992,-1181.84,0.00016488,2]
[366156692,1750090255002,-490.0,0.00016488,2]
[366156693,1750090255012,-1105.41,0.00016488,2]
[366156694,1750090255022,-490.0,0.00016488,2]
[366156695,1750090255032,-649.85,0.00016488,2]
[366156696,1750090255042,-151.0,0.00016488,2]
[366156697,1750090255052,-1001.33,0.00016488,2]
[366156698,1750090255062,-760.15,0.00016488,2]
[366156699,1750090255072,-3286.84,0.00016488,2]
[366156700,1750090255082,-840.85,0.00016488,2]
[366156701,1750090255093,-490.0,0.00016488,2]
[366156702,1750090255102,-1133.38,0.00016488,2]
[366156703,1750090255112,-1055.66,0.00016488,2]
[366156704,1750090255122,-931.33,0.00016488,2]
[366156705,1750090255132,-9779.82,0.00016488,2]
[366156706,1750090255142,-490.0,0.00016488,2]
[366156707,1750090255156,-2428.95,0.00016488,2]
[366156708,1750090255167,-490.0,0.00016488,2]
[366156709,1750090255177,-490.0,0.00016488,2]
[366156710,1750090255186,-598.51,0.00016488,2]
[366156711,1750090255198,-790.13,0.00016488,2]
[366156712,1750090255208,-490.0,0.00016488,2]
[366156713,1750090255531,-989.16,0.00016488,2]
[366156714,1750090255543,-1308.86,0.00016488,2]
[366156715,1750090255553,-3387.41,0.00016488,2]
[366156716,1750090255563,-674.48,0.00016488,2]
[366156717,1750090255576,-1264.22,0.00016488,2]
[366156718,1750090255586,-490.0,0.00016488,2]
[366156719,1750090255595,-1178.94,0.00016488,2]
[366156720,1750090255605,-1654.76,0.00016488,2]
[366156721,1750090255616,-151.0,0.00016488,2]
[366156722,1750090255626,-1092.03,0.00016488,2]
[366156723,1750090255636,-1330.62,0.00016488,2]
[366156724,1750090255646,-151.0,0.00016488,2]
[366156725,1750090255656,-1037.94,0.00016488,2]
[366156726,1750090255665,-151.0,0.00016488,2]
[366156727,1750090255675,-1291.75,0.00016488,2]
[366156728,1750090255685,-3808.21,0.00016488,2]
[366156729,1750090255695,-490.0,0.00016488,2]
[366156730,1750090255705,-640.36,0.00016488,2]
[366156731,1750090255715,-856.11,0.00016488,2]
[366156732,1750090255932,-1901.05,0.00016488,2]
[366156733,1750090255943,-1853.54,0.00016488,2]
[366156734,1750090255953,-592.75,0.00016488,2]
[366156735,1750090255964,-727.66,0.00016488,2]
[366156736,1750090255976,-151.0,0.00016488,2]
[366156737,1750090255987,-538.67,0.00016488,2]
[366156738,1750090255998,-490.0,0.00016488,2]
[366156739,1750090256007,-547.53,0.00016488,2]
[366156740,1750090256018,-151.0,0.00016488,2]
[366156741,1750090256028,-1767.69,0.00016488,2]
[366156742,1750090256042,-798.41,0.00016488,2]
[366156743,1750090256052,-7744.98,0.00016488,2]
[366156744,1750090256063,-753.27,0.00016488,2]
[366156745,1750090256073,-151.0,0.00016488,2]
[366156746,1750090256083,-590.67,0.00016488,2]
[366156747,1750090256093,-168.651664,0.00016488,2]
[366156748,1750090256103,-168.651664,0.00016488,2]
[366156749,1750090256113,-490.0,0.00016488,2]
[366156750,1750090256124,-151.0,0.00016488,2]
[366156751,1750090256134,-1308.7,0.00016488,2]
[366156752,1750090256145,-826.89,0.00016488,2]
[366156753,1750090256158,-767.72,0.00016488,2]
[366156754,1750090256168,-892.82,0.00016488,2]
[366156755,1750090256178,-767.72,0.00016488,2]
[366156756,1750090256190,-490.0,0.00016488,2]
[366156757,1750090256200,-490.0,0.00016488,2]
[366156758,1750090256210,-490.0,0.00016488,2]
[366156759,1750090256220,-151.0,0.00016488,2]
[366156760,1750090256233,-223.37906162,0.00016488,2]
[366156761,1750090256243,-49179.16601781,0.00016489,2]
[366156762,1750090256253,-578930.61771163,0.00016489,2]
[366156763,1750090256703,-490.0,0.00016159,2]
[366156764,1750090256713,-27914.8184744,0.00016489,2]
[366156765,1750090256726,-5278.66569594,0.00016489,2]
[366156766,1750090257318,-264.84864,0.00016158,2]
[366156767,1750090257977,-225.15136,0.00016158,2]
[366156768,1750090257987,-490.0,0.00016158,2]
[366156769,1750090257998,-724.75,0.00016158,2]
[366156770,1750090258007,-490.0,0.00016159,2]
[366156771,1750090258017,-457.83816335,0.00016159,2]
[366156772,1750090258026,-241.81455337,0.0001616,2]
[366156773,1750090258040,-490.0,0.00016323,2]
[366156774,1750090258050,-490.0,0.00016323,2]
[366156775,1750090258060,-724.75,0.00016323,2]
[366156776,1750090258070,-490.0,0.00016324,2]
[366156777,1750090258080,-490.0,0.00016324,2]
[366156778,1750090258090,-416.86,0.00016487,2]
[366156779,1750090258100,-724.75,0.00016487,2]
[366156780,1750090258110,-490.0,0.00016488,2]
[366156781,1750090258120,-490.0,0.00016488,2]
[366156782,1750090258129,-14094.90019998,0.00016489,2]
[366156783,1750090258141,-112318.7797127,0.00016489,2]
[366156784,1750090258165,-150.0,0.00016054,2]
[366156785,1750090258175,-150.0,0.0001622,2]
[366156786,1750090258186,-799.88375005,0.00016489,2]
[366156787,1750090258224,-6452.96946,0.00016489,2]
[366156791,1750090331859,202.0,0.00015076,2]
[366156794,1750090344521,3141.78960361,0.00015125,2]
[366156795,1750090344609,10000.0,0.00015125,2]
[366156796,1750090344698,10000.0,0.00015125,2]
[366156797,1750090344790,758.21039639,0.00015125,2]
[366156798,1750090349252,400.71,0.00015246,2]
[366156799,1750090361509,201.0,0.00015076,2]
[366156812,1750090421405,202.0,0.0001576,2]
[366156813,1750090447991,1884.93,0.00024658,120]
[366156814,1750090449806,500.0,0.00015068,2]
[366156816,1750090464696,1680.28,0.00015116,2]
[366156820,1750090477654,180.16532121,0.00015438,2]
[366156822,1750090487155,171.8,0.00012093,2]
[366156823,1750090489366,154.59768087,0.00015959,2]
[366156826,1750090503522,248.28,0.000159,2]
[366156827,1750090512072,1133.0,0.00024658,120]
[366156831,1750090533721,200.0,0.000151,2]
[366156837,1750090590297,1166.63,0.00015099,2]
[366156844,1750090627678,200.9731,0.00015959,2]
[366156845,1750090640168,994.3099,0.00015959,2]
[366156851,1750090667753,500.0,0.00015068,2]
[366156857,1750090706948,154.59768086,0.00015959,2]
[366156858,1750090712586,166.74,0.00015548,2]
[366156859,1750090714464,161.77,0.00015095,2]
[366156863,1750090721770,150.0,0.0001509,2]
[366156864,1750090721828,205.0,0.0001576,2]
[366156865,1750090728440,230.01841559,0.00015959,2]
[366156866,1750090728491,1372.91750508,0.00015959,2]
[366156867,1750090728532,7545.80796766,0.00015959,2]
[366156869,1750090747732,541.24664079,0.00015959,2]
[366156872,1750090754168,250.0,0.00015081,2]
[366156874,1750090781374,202.0,0.00015327,2]
[366156875,1750090781633,202.0,0.000159,2]
[366156878,1750090782447,1258.94539155,0.00015959,2]
[366156879,1750090782484,1241.05460845,0.00015959,2]
[366156880,1750090791927,538.96,0.00015859,2]
[366156882,1750090810813,1000.0,0.00015083,2]
[366156887,1750090828822,7219.98539155,0.00015958,2]
[366156888,1750090828859,3293.43053811,0.00015958,2]
[366156897,1750090854340,274.22523441,0.0001596,2]
[366156899,1750090869583,234.34,0.00013699,2]
[366156900,1750090882406,500.0,0.00015068,2]
[366156902,1750090913007,154.59768086,0.00015958,2]
[366156903,1750090915575,200.0,0.00015096,2]
[366156904,1750090951841,2500.0,0.00015959,2]
[366156906,1750090997235,2000.0,0.00015971,2]
[366156907,1750090998705,201.26611365,0.00015958,2]
[366156909,1750091081290,201.0,0.00015327,2]
[366156910,1750091103164,441.14043297,0.00015949,2]
[366156911,1750091103190,100.1062078,0.00015949,2]
[366156912,1750091108528,154.59768086,0.00015947,2]
[366156913,1750091110499,150.0,0.00014893,2]
[366156914,1750091115753,8387.00614788,0.00015958,2]
[366156915,1750091123232,150.0,0.00014893,2]
[366156916,1750091141438,202.0,0.00015473,2]
[366156917,1750091168832,624.95711251,0.00015993,2]
[366156921,1750091190120,231.33285095,0.00015958,2]
[366156922,1750091190148,15.46986001,0.00015958,2]
[366156926,1750091259545,200.0,0.00015065,7]
[366156931,1750091294063,154.59768086,0.00015941,2]
[366156938,1750091314124,416.638075,0.00015959,2]
[366156941,1750091317476,9213.29438413,0.00015958,2]
[366156942,1750091317504,10000.0,0.00015958,2]
[366156943,1750091317533,10000.0,0.00015958,2]
[366156944,1750091317558,3552.75991587,0.00015958,2]
[366156952,1750091328392,1500.0,0.00015062,2]
[366156964,1750091360536,4947.24008413,0.00015941,2]
[366156965,1750091360561,4514.8342526,0.00015941,2]
[366156967,1750091365599,5485.1657474,0.00015998,2]
[366156968,1750091365624,3976.90858925,0.00015998,2]